Cogmind - Beta 15 @@@ ROGUE MODE // 2025.09.23 @ 16:23:03 Player: bluemonk Result: Destroyed by X-67 Chaingunner with Heavy Machine Gun Performance ------------- Evolutions (3) 1500 Regions Visited (7) 1400 Robots Destroyed (46) 230 Value Destroyed (1625) 1625 Prototype IDs (25) 500 Alien Tech Used (0) 0 Bonus (1132) 1132 TOTAL SCORE: 6387 Bonus ------- High Alert Combat Kills 123 Follower Combat Kills 209 Entered DSFs 500 Aligned with FarCom 300 Cogmind --------- Core Integrity 0/700 Matter 163/300 Energy 98/100 System Corruption 10% Temperature Cool (0) Movement Core (100) Ox1 Location -7/DSF Parts ------- > --- POWER (2) -------- (None) > --- PROPULSION (4) --- (None) > --- UTILITY (5) ------ (None) > --- WEAPON (2) ------- Flak Gun > --- INVENTORY (5) ---- (None) Peak State ------------ > --- POWER ------------ Nuclear Core Nuclear Core > --- PROPULSION ------- Armored Treads Armored Treads Armored Treads Medium Treads > --- UTILITY ---------- Improved Heat Sink Small Storage Unit Superbattery Advanced Targeting Computer Particle Charger > --- WEAPON ----------- Heavy Laser Shock Bomb Launcher > --- INVENTORY -------- Nuclear Core Light Nuclear Core Light Treads Advanced Treads Improved Light Armor Plating Component Analysis Suite Shock Rifle EM Pulse Cannon [Rating: 48] Favorites ----------- Power Nuclear Core Engine Ion Engine Power Core Nuclear Core Propulsion Aluminum Leg Treads Armored Treads Leg Aluminum Leg Utility Small Storage Unit Device Improved Heat Sink Storage Small Storage Unit Processor Advanced Targeting Computer Protection Medium Reactive Plating Weapon Light Assault Rifle Energy Gun Spread Laser Energy Cannon EM Pulse Cannon Ballistic Gun Light Assault Rifle Ballistic Cannon Gauss Cannon Launcher Shock Bomb Launcher Build | -11 -10 -10 -10 -9 -8 -7 -7 ------- Run | Yrd Mat Min Exi Min Mat Fac DSF Slots Evolved 6 | . . . . . 4 2 . Power 1 | . . . . . 1 . . Propulsion 2 | . . . . . 2 . . Utility 3 | . . . . . 1 2 . Weapon . | . . . . . . . . Parts Attached 41 | 6 1 1 2 1 14 3 13 Power 7 | 1 . 1 . . 3 . 2 Engine 2 | 1 . . . . 1 . . Core 5 | . . 1 . . 2 . 2 Reactor . | . . . . . . . . Propulsion 10 | 2 . . . . 6 1 1 Treads 6 | . . . . . 4 1 1 Leg 4 | 2 . . . . 2 . . Wheel . | . . . . . . . . Hover . | . . . . . . . . Flight . | . . . . . . . . Utility 10 | 1 1 . 2 . 1 2 3 Device 4 | . . . . . 1 1 2 Storage 4 | 1 1 . 2 . . . . Processor 1 | . . . . . . 1 . Hackware . | . . . . . . . . Protection 1 | . . . . . . . 1 Artifact . | . . . . . . . . Weapon 14 | 2 . . . 1 4 . 7 Energy Gun 4 | . . . . 1 1 . 2 Energy Cannon 2 | . . . . . 1 . 1 Ballistic Gun 4 | 2 . . . . 1 . 1 Ballistic Cannon 3 | . . . . . . . 3 Launcher 1 | . . . . . 1 . . Special Weapon . | . . . . . . . . Impact Weapon . | . . . . . . . . Slashing Weapon . | . . . . . . . . Piercing Weapon . | . . . . . . . . Special Melee Weapon . | . . . . . . . . Unidentified Prototypes . | . . . . . . . . Parts Lost 27 | . . . . . 3 . 24 Power 5 | . . . . . 1 . 4 Propulsion 6 | . . . . . 1 . 5 Utility 7 | . . . . . . . 7 Weapon 9 | . . . . . 1 . 8 Highest Loss Streak 18 | . . . . . 1 . 18 To Critical Strikes . | . . . . . . . . Average Backups 7 | 2 6 7 8 8 7 7 3 Power 1 | . 1 1 2 2 1 2 . Propulsion 1 | 1 4 2 2 2 1 2 . Utility 1 | . . 1 2 2 1 1 1 Weapon 1 | . 1 2 2 2 2 2 . Tool/Special . | . . . . . . . . Unused Backups 18 | . . 6 1 . 9 1 1 Power 1 | . . 1 . . . . . Propulsion 6 | . . 4 . . 1 1 . Utility 5 | . . . 1 . 3 . 1 Weapon 6 | . . 1 . . 5 . . Tool/Special . | . . . . . . . . Average Slot Usage (%) 98 | . 87 100 100 100 99 99 82 Engine 1 | . 14 6 . . 3 . . Core 13 | . . 7 14 14 14 15 12 Treads 12 | . . . . . 21 30 23 Leg 17 | . 28 28 28 28 14 . . Device 5 | . . . . . 8 14 11 Storage 21 | . 16 28 28 28 18 15 14 Processor 1 | . . . . . . 7 6 Energy Gun 5 | . . . . 10 9 7 6 Energy Cannon 1 | . . . . . 5 . 1 Ballistic Gun 12 | . 28 28 28 17 1 . . Launcher 1 | . . . . . 2 7 . Peak Build Rating 48 | 6 7 10 19 20 41 48 48 Average Rating 26 | 4 6 8 11 19 35 47 40 On Entrance 18 | . 6 7 10 19 20 41 48 Naked Turns . | . . . . . . . . Heaviest Build 44 | 12 14 14 16 18 34 37 44 Greatest Support 90 | 20 20 20 20 20 80 88 90 Greatest Overweight (x) 2 | . . . . . 1 . 2 Average Overweight (x) . | . . . . . . . . Largest Inventory Capacity 8 | 8 8 8 8 8 8 8 8 Average Capacity 7 | 6 8 8 8 8 8 8 7 Most Carried 8 | 6 8 8 8 8 8 8 8 Average Carried 7 | 2 6 7 7 8 7 7 3 Final Capacity 8 | 8 8 8 8 8 8 8 5 Final Carried 8 | 6 8 8 8 8 8 8 . Class Distribution -------------------- 88% | Mutant 11% | Scavenger-Mutant Dominant Class ---------------- Mutant | -10/Materials Mutant | -10/Mines Mutant | -10/Exiles Mutant | -9/Mines Mutant | -8/Materials Mutant | -7/Factory Mutant | -7/DSF Resources | -11 -10 -10 -10 -9 -8 -7 -7 ----------- Run | Yrd Mat Min Exi Min Mat Fac DSF Matter Collected 818 | 186 . 327 21 12 206 . 66 Remotely . | . . . . . . . . Salvage Created 2131 | . . 109 . . 1563 . 459 Parts 98 | . . 6 . . 74 . 18 Haulers Intercepted 2 | . . . . . 2 . . Recyclers Shooed . | . . . . . . . . Parts Field Recycled . | . . . . . . . . Retrieved Matter . | . . . . . . . . Parts Self-Destructed . | . . . . . . . . Prevented . | . . . . . . . . Kills | -11 -10 -10 -10 -9 -8 -7 -7 ------- Run | Yrd Mat Min Exi Min Mat Fac DSF Combat Hostiles Destroyed 34 | . . 4 . . 25 . 5 Guns 12 | . . 4 . . 6 . 2 Cannons 12 | . . . . . 9 . 3 AOE 9 | . . . . . 9 . . Classes Destroyed 11 | . . 2 . . 7 . 2 Worker 1 | . . . . . 1 . . Builder 5 | . . . . . 5 . . Hauler 2 | . . . . . 2 . . Recycler 1 | . . . . . 1 . . Watcher 3 | . . . . . 3 . . Swarmer 6 | . . 2 . . 4 . . Grunt 21 | . . 2 . . 18 . 1 Brawler 1 | . . . . . . . 1 Sentry 2 | . . . . . 2 . . Specialist 3 | . . . . . . . 3 Hunter 1 | . . . . . 1 . . Best Kill Streak 12 | . . 2 . . 12 . 3 Combat Bots Only 8 | . . 2 . . 8 . 3 Max Kills in Single Turn 3 | . . 1 . . 3 . 1 Gunslinging . | . . . . . . . . Exploded 2 | . . . . . 2 . . Melee . | . . . . . . . . Uniques/NPCs Destroyed . | . . . . . . . . Combat | -11 -10 -10 -10 -9 -8 -7 -7 -------- Run | Yrd Mat Min Exi Min Mat Fac DSF Hostile Shots Fired 411 | . . 37 . 1 130 . 243 Missed 138 | . . 8 . . 43 . 87 Hits 273 | . . 29 . 1 87 . 156 Projectile 273 | . . 29 . 1 87 . 156 Critical Strikes 10 | . . . . . 5 . 5 Damage Taken 4841 | . . 330 . 18 1304 136 3053 Core 924 | . . 73 . . 150 22 679 Absorbed by Shields . | . . . . . . . . Ignored by Resistances 109 | . . . . . . . 109 Core Remaining (%) 80 | 100 . . . 70 72 . . Volleys Fired 131 | . 1 21 . 1 74 . 34 Largest 2 | . 2 2 . 2 2 . 2 Hottest 132 | . 40 40 . 40 132 . 132 Shots Fired 230 | . 2 42 . 2 127 . 57 Gun 124 | . 2 42 . 2 53 . 25 Cannon 90 | . . . . . 59 . 31 Launcher 16 | . . . . . 15 . 1 Special . | . . . . . . . . Kinetic 70 | . 2 42 . 2 . . 24 Thermal 61 | . . . . . 53 . 8 Explosive . | . . . . . . . . Electromagnetic 99 | . . . . . 74 . 25 Robot Hit Streak 8 | . . 4 . 3 7 . 8 Robot Miss Streak 6 | . 2 5 . . 6 . 2 Penetration Max . | . . . . . . . . Secondary Targets . | . . . . . . . . Shots Hit Robots 141 | . . 21 . 2 78 . 40 Core Hits 109 | . . 10 . 1 89 . 9 Critical Kills . | . . . . . . . . Critical Parts Destroyed . | . . . . . . . . Critical Strikes 4 | . . . . . . . 4 Burn 1 | . . . . . . . 1 Blast 3 | . . . . . . . 3 Melee Attacks . | . . . . . . . . Impact . | . . . . . . . . Slashing . | . . . . . . . . Piercing . | . . . . . . . . Sneak Attacks . | . . . . . . . . Combat Hostiles . | . . . . . . . . Follow-up Attacks . | . . . . . . . . Damage Inflicted 4152 | . . 210 . 20 2918 . 1004 Guns 1090 | . . 210 . 20 558 . 302 Cannons 1713 | . . . . . 1102 . 611 Explosions 1348 | . . . . . 1257 . 91 Melee . | . . . . . . . . Ramming 1 | . . . . . 1 . . Kinetic 730 | . . 210 . 20 . . 500 Thermal 1224 | . . . . . 1026 . 198 Explosive . | . . . . . . . . Electromagnetic 2197 | . . . . . 1891 . 306 Impact . | . . . . . . . . Slashing . | . . . . . . . . Piercing . | . . . . . . . . Highest Corruption 10 | . . . . . 1 10 10 Average Corruption 6 | . . . . . 1 8 10 Corruption Purged . | . . . . . . . . Corruption Blocked . | . . . . . . . . Effects 8 | . . . . . 1 1 6 Message Errors 1 | . . . . . . . 1 Matter Fused 1 | . . . . . . . 1 Heat Flow Errors 1 | . . . . . 1 . . Parts Rejected 1 | . . . . . . . 1 Data Loss (minor) 1 | . . . . . . . 1 Data Loss (major) 1 | . . . . . . 1 . Alerts 1 | . . . . . . . 1 Misdirections 1 | . . . . . . . 1 Overload Shots . | . . . . . . . . Overflow Damage 26 | . . . . . 26 . . Projectiles 26 | . . . . . 26 . . Explosions . | . . . . . . . . Melee . | . . . . . . . . Knockbacks 3 | . . . . . . . 3 Impact . | . . . . . . . . Kinetic 3 | . . . . . . . 3 Secondary . | . . . . . . . . Self-Inflicted Damage 57 | . . . . . 37 . 20 Shots 5 | . . . . . 4 . 1 Rammed 1 | . . . . . 1 . . Targets Rammed 2 | . . . . 1 1 . . Kicked 1 | . . . . 1 . . . Crushed . | . . . . . . . . Highest Temperature 559 | . . 55 . 13 559 . 20 Average Temperature 159 | . . 25 . 7 183 . 6 Received Heat Transfer 1533 | . . 138 . 9 675 . 711 Effects 8 | . . . . . 8 . . Shutdowns 6 | . . . . . 6 . . Energy Bleed 1 | . . . . . 1 . . Damage (minor) 1 | . . . . . 1 . . Siege Activations . | . . . . . . . . Martial Activations . | . . . . . . . . Shielding Activations . | . . . . . . . . Robots Disrupted . | . . . . . . . . Combat Hostiles . | . . . . . . . . Robots Corrupted 1 | . . . . . 1 . . Combat Hostiles 1 | . . . . . 1 . . Parts Fried 6 | . . . . . 6 . . Impact Corruptions . | . . . . . . . . Robots Melted . | . . . . . . . . Combat Hostiles . | . . . . . . . . Parts Melted . | . . . . . . . . Heat Transferred 1717 | . . . . . 1321 . 396 Parts Sabotaged . | . . . . . . . . Parts Stolen . | . . . . . . . . Parts Stripped . | . . . . . . . . Power Chain Reactions 8 | . . . . . 7 . 1 Alert | -11 -10 -10 -10 -9 -8 -7 -7 ------- Run | Yrd Mat Min Exi Min Mat Fac DSF Maximum Alert Level 2 | . . . . . 2 1 . Low Security (%) 75 | 100 100 100 . 100 53 51 100 Level 1 11 | . . . . . 10 48 . Level 2 12 | . . . . . 36 . . Level 3 . | . . . . . . . . Level 4 . | . . . . . . . . Level 5 . | . . . . . . . . High Security . | . . . . . . . . Max Security . | . . . . . . . . Peak Influence 668 | . 5 66 . 58 668 279 102 Initial 279 | . . . . . . 279 62 Average 132 | . . 23 . 6 262 189 73 Influence Increases 1458 | . 5 156 . 58 1016 24 199 Destroy 0b10 Robot/C 860 | . . 120 . 40 600 . 100 Destroy 0b10 Robot/NC 60 | . . . . . 60 . . Destroy Leader 190 | . . 20 . 10 140 . 20 Allied During Kill 48 | . . 16 . 8 24 . . Successful Hack 76 | . 5 . . . 47 24 . Disable Machine 135 | . . . . . 105 . 30 Destroy Structure 14 | . . . . . 10 . 4 Lose Combat Pursuer 75 | . . . . . 30 . 45 Influence Decreases 1437 | . 5 140 16 58 402 549 267 Entered New Map 378 | . . . 16 . . 335 27 Time Decay 749 | . 5 140 . 58 332 214 . Lost Part 270 | . . . . . 30 . 240 Lost Ally 40 | . . . . . 40 . . Squads Dispatched 12 | . . . . . 9 . 3 Investigation 4 | . . . . . 4 . . Extermination . | . . . . . . . . Reinforcement 5 | . . . . . 2 . 3 Assault . | . . . . . . . . Garrison 3 | . . . . . 3 . . Intercept . | . . . . . . . . Searches Triggered . | . . . . . . . . Construction Impeded 2 | . . . . . 2 . . Haulers Reinforced . | . . . . . . . . Active Scanning Responses . | . . . . . . . . Cargo Convoy Interrupts . | . . . . . . . . Stealth | -11 -10 -10 -10 -9 -8 -7 -7 --------- Run | Yrd Mat Min Exi Min Mat Fac DSF Distress Signals 3 | . . . . . 3 . . Communications Jammed . | . . . . . . . . Distress Signals . | . . . . . . . . Times Spotted 66 | . 1 7 . 2 39 . 17 Peak Tracking Total 10 | . 2 3 . 2 6 . 10 Tactical Retreats 4 | . . . . . 2 . 2 Traps | -11 -10 -10 -10 -9 -8 -7 -7 ------- Run | Yrd Mat Min Exi Min Mat Fac DSF Traps Triggered 9 | . . . . . 2 6 1 Indirectly 1 | . . . . . 1 . . Trap Hack Attempts . | . . . . . . . . Triggered . | . . . . . . . . Disarmed . | . . . . . . . . Reprogrammed . | . . . . . . . . Reused . | . . . . . . . . Traps Extracted . | . . . . . . . . Installed . | . . . . . . . . Triggered . | . . . . . . . . Machines | -11 -10 -10 -10 -9 -8 -7 -7 ---------- Run | Yrd Mat Min Exi Min Mat Fac DSF Machines Disabled 9 | . . . . . 7 . 2 Max in Single Turn 2 | . . . . . 2 . 1 Machines Repaired . | . . . . . . . . Machines Dismantled . | . . . . . . . . Machines Sabotaged . | . . . . . . . . Overloaded Fab Kills . | . . . . . . . . Hacking | -11 -10 -10 -10 -9 -8 -7 -7 --------- Run | Yrd Mat Min Exi Min Mat Fac DSF Machines Accessed 12 | . 2 . 3 . 5 2 . Terminals 6 | . 2 . . . 3 1 . Fabricators . | . . . . . . . . Repair Stations . | . . . . . . . . Recycling Units 1 | . . . . . 1 . . Scanalyzers 1 | . . . . . 1 . . Garrison Access 1 | . . . . . . 1 . Total Hacks 48 | . 7 . 18 . 19 4 . Successful 35 | . 4 . 18 . 11 2 . Failed 13 | . 3 . . . 8 2 . Catastrophic 2 | . . . . . 2 . . Database Lockouts . | . . . . . . . . Manual 2 | . . . 1 . . 1 . Terminals 23 | . 7 . . . 14 2 . Fabricators . | . . . . . . . . Repair Stations . | . . . . . . . . Recycling Units 2 | . . . . . 2 . . Scanalyzers 3 | . . . . . 3 . . Garrison Access 2 | . . . . . . 2 . Terminal Hacks 31 | . 4 . 18 . 8 1 . Record 18 | . 1 . 17 . . . . Prototype ID Bank 1 | . . . . . 1 . . Open DSF 1 | . . . . . . 1 . Level Access Points 1 | . 1 . . . . . . Emergency Access Points 1 | . . . . . 1 . . Dispatch Records 1 | . . . . . 1 . . Security Status 2 | . 1 . . . 1 . . Reinforcement Status 1 | . . . . . 1 . . Hauler Manifests 1 | . . . . . 1 . . Zone Layout 3 | . 1 . . . 2 . . Proto ID Catalog 1 | . . . 1 . . . . Fabricator Hacks . | . . . . . . . . Repair Station Hacks . | . . . . . . . . Recycling Unit Hacks 2 | . . . . . 2 . . Report Inventory 1 | . . . . . 1 . . Retrieve Components 1 | . . . . . 1 . . Scanalyzer 1 | . . . . . 1 . . Insert Component 1 | . . . . . 1 . . Garrison Access Hacks . | . . . . . . . . Unauthorized Hacks 1 | . . . . . . 1 . Terminals . | . . . . . . . . Fabricators . | . . . . . . . . Repair Stations . | . . . . . . . . Recycling Units . | . . . . . . . . Scanalyzers . | . . . . . . . . Garrison Access 1 | . . . . . . 1 . Watchers 1 | . . . . . . 1 . Data Cores Recovered . | . . . . . . . . Used . | . . . . . . . . Hacking Detections 7 | . 1 . . . 5 1 . Full Trace Events 2 | . . . . . 2 . . Feedback Events 1 | . . . . . 1 . . Corruption 1 | . . . . . 1 . . Feedback Blocked . | . . . . . . . . Robot Schematics Acquired . | . . . . . . . . Robots Built . | . . . . . . . . Authchips . | . . . . . . . . Time . | . . . . . . . . Total Robot Build Rating . | . . . . . . . . Part Schematics Acquired . | . . . . . . . . Parts Built . | . . . . . . . . Authchips . | . . . . . . . . Time . | . . . . . . . . Total Part Build Rating . | . . . . . . . . Parts Repaired . | . . . . . . . . Time . | . . . . . . . . Parts Recycled . | . . . . . . . . Recycled Matter . | . . . . . . . . Retrieved Matter . | . . . . . . . . Retrieved Components 3 | . . . . . 3 . . Parts Scanalyzed 1 | . . . . . 1 . . Part Schematics Acquired . | . . . . . . . . Parts Damaged 1 | . . . . . 1 . . Bothacking | -11 -10 -10 -10 -9 -8 -7 -7 ------------ Run | Yrd Mat Min Exi Min Mat Fac DSF Used RIF Installer . | . . . . . . . . Robots Hacked . | . . . . . . . . Non-combat . | . . . . . . . . Combat . | . . . . . . . . Robot Hacks Applied . | . . . . . . . . Relay Couplers Released . | . . . . . . . . Fabnet Peak Effective % . | . . . . . . . . Robots Rewired . | . . . . . . . . Allies Hacked . | . . . . . . . . Hacks Repelled . | . . . . . . . . Allies | -11 -10 -10 -10 -9 -8 -7 -7 -------- Run | Yrd Mat Min Exi Min Mat Fac DSF Total Allies 3 | . . 3 . . . . . Largest Group 3 | . . 3 3 3 3 . . Highest-Rated Group 40 | . . 40 40 40 40 . . Highest-Rated Ally 16 | . . 16 16 16 16 . . Total Orders . | . . . . . . . . Ally Attacks 45 | . . 9 . 6 30 . . Total Damage 470 | . . 139 . 50 281 . . Kills 9 | . . 2 . 2 5 . . Allies Corrupted . | . . . . . . . . Allies Melted . | . . . . . . . . Intel | -11 -10 -10 -10 -9 -8 -7 -7 ------- Run | Yrd Mat Min Exi Min Mat Fac DSF Active Infowar (turns) . | . . . . . . . . Robot Analysis Total . | . . . . . . . . Derelict Logs Recovered 1 | . . . . 1 . . . Drone Launches . | . . . . . . . . Drone Recoveries . | . . . . . . . . Exploration | -11 -10 -10 -10 -9 -8 -7 -7 ------------- Run | Yrd Mat Min Exi Min Mat Fac DSF Turns Passed 3212 | 71 67 351 559 568 893 454 249 Spaces Moved 1957 | 49 51 234 461 375 446 262 79 Core 5 | 3 . . . . . . 2 Treads 546 | . . . . . 207 262 77 Legs 1406 | 46 51 234 461 375 239 . . Wheels . | . . . . . . . . Hover . | . . . . . . . . Flight . | . . . . . . . . Fastest Speed 50 | 50 120 120 120 120 120 167 150 Average Speed 133 | 115 120 120 120 120 143 168 163 Slowest Speed 250 | 120 120 120 120 120 250 170 240 Overloaded Moves . | . . . . . . . . Propulsion Burnouts . | . . . . . . . . Robots Hopped . | . . . . . . . . Potential Cave-ins . | . . . . . . . . Cave-ins Triggered . | . . . . . . . . Exploration Rate (%) 45 | 4 14 57 92 79 40 6 72 Regions Visited 7 Branch Regions 3 Pre-discovered Areas 1 | . . . . 1 . . . Known Exits Taken 1 | . . . . . . 1 . Unknown Exits Taken 6 | 1 1 1 1 1 1 . . Scrap Searched 4 | . . 2 . 2 . . . Spaces Dug . | . . . . . . . . Terrain Destroyed 13 | . . . . . 9 . 4 Melee . | . . . . . . . . Projectile . | . . . . . . . . AOE 13 | . . . . . 9 . 4 Terrain Rammed . | . . . . . . . . Walls Destroyed . | . . . . . . . . Machines Disabled . | . . . . . . . . Actions | -11 -10 -10 -10 -9 -8 -7 -7 --------- Run | Yrd Mat Min Exi Min Mat Fac DSF Total 2335 | 60 54 273 467 491 576 275 139 Wait 138 | . . 6 2 111 5 6 8 Move 1950 | 48 50 233 460 374 445 261 79 Hop . | . . . . . . . . Pick Up 40 | 6 2 6 1 1 19 3 2 Fast Attach 18 | 6 1 . . 1 5 . 5 Attach 17 | . . . . . 6 2 9 Detach . | . . . . . . . . Swap 7 | . . 1 2 . 3 1 . Drop 31 | . . 6 2 2 18 2 1 Fire 131 | . 1 21 . 1 74 . 34 Melee . | . . . . . . . . Ram . | . . . . . . . . Kick 1 | . . . . 1 . . . Crush 1 | . . . . . 1 . . Escape Stasis . | . . . . . . . . Rewire 1 | . . . . . . . 1 Trap . | . . . . . . . . Miscellaneous . | . . . . . . . . Route ------- -11/Scrapyard -10/Materials (discovered 4 exits: Mat x3 / [*Min]) -10/Mines -10/Exiles (discovered 2 exits: [*Min x2]) -9/Mines -8/Materials (discovered 2 exits: *Fac x2) -7/Factory -7/DSF (discovered 1 exit: [*Fac]) History --------- Turn | Location | Event 13 | -11/Scrapyard | Discovered new exit (range 15) 72 | -11/Scrapyard | Entered Materials 100 | -10/Materials | Discovered new exit (range 11) 114 | -10/Materials | Identified exit to Materials 139 | -10/Materials | Entered Mines 274 | -10/Mines | Assisted by bots powering up and referring to "LRC-V3" 317 | -10/Mines | Build established: Mutant 469 | -10/Mines | Deemed a non-threat by the Exiles lab entrance 469 | -10/Mines | Discovered new exit (range 5) 490 | -10/Mines | Entered Exiles 490 | -10/Exiles | Accompanied by 3 allies 506 | -10/Exiles | Discovered new exit (range 15) 520 | -10/Exiles | Met 8R-AWN 538 | -10/Exiles | Met EX-HEX 610 | -10/Exiles | Met EX-DEC 635 | -10/Exiles | Visited The Gauntlet 840 | -10/Exiles | Met EX-BIN 870 | -10/Exiles | Aligned with FarCom system 871 | -10/Exiles | Given EX-Vault access code 919 | -10/Exiles | Opened EX-Vault 932 | -10/Exiles | Found Superbattery 956 | -10/Exiles | Warned to stay clear of 0b10 Research branches 1031 | -10/Exiles | Discovered new exit (range 12) 1049 | -10/Exiles | Left Exiles lab with Superbattery 1049 | -10/Exiles | Entered Mines 1049 | -9/Mines | Accompanied by 3 allies 1226 | -9/Mines | Received a Rocket Launcher from a helpful Derelict 1600 | -9/Mines | Discovered new exit (range 5) 1617 | -9/Mines | Entered Materials 1617 | -8/Materials | Accompanied by 3 allies 1617 | -8/Materials | Evolved 4 slots: Power x1, Propulsion x2, Utility x1 1906 | -8/Materials | Build established: Scavenger-Mutant 1933 | -8/Materials | Discovered new exit (range 4) 2141 | -8/Materials | Garrison activated, responded to threat 2219 | -8/Materials | Destroyed 8 combat bots 2247 | -8/Materials | Discovered new exit (range 15) 2293 | -8/Materials | Build established: Mutant 2510 | -8/Materials | Entered Factory 2510 | -7/Factory | Evolved 2 slots: Utility x2 2945 | -7/Factory | System corruption reached 10% 2961 | -7/Factory | Identified exit to DSF 2964 | -7/Factory | Entered DSF 2986 | -7/DSF | Additional patrols routed to DSF 3030 | -7/DSF | Lost 3 parts (1p1n1w) 3078 | -7/DSF | Lost 3 parts (1u2w) 3137 | -7/DSF | Discovered new exit (range 12) 3196 | -7/DSF | Core integrity fell below 50% 3210 | -7/DSF | Core integrity fell below 20% 3213 | -7/DSF | Destroyed by X-67 Chaingunner with Heavy Machine Gun Last Messages --------------- Critical hit (Burn: +37). Med. Treads destroyed. G-47 Trooper destroyed. Nuclear Core destroyed. Med. Reactive Plating destroyed. Slug penetrates H-61 Shepherd. Destroyed Dynamic Insulation System. Slug penetrates H-61 Shepherd. Gauss Cannon destroyed. Slug penetrates H-61 Shepherd. G-47 Trooper destroyed. A-02 Transporter exits level. Slug penetrates H-61 Shepherd. Gauss Cannon destroyed. Critical hit (Burn: +37). Superbattery destroyed. Sml. Storage Unit destroyed. Adv. Targeting Computer destroyed. Acquired Flak Gun. Critical hit (Burn: +37). Map ----- +----------------------------------------------------+ | ! !!#???????? !!#????????????????????? | | # ###????????# ###????????????????????? | | ! !!#????????? !??????????????????????? | | ! !!#????????? !??????????????????????? | | ! !!#????????? !!?????????????????????? | | # ######???#?? ##?????????????????????? | | ! #? #?!!#?? #??????????????????????? | | ! ## #!!!## ??????????????????????? | | ! ??????????????????????? | | ! ????????????????????????? | | ! % ??????????????????????? | | ! ## "!!!## ??????????????????????? | | ! #? #!!!#?# #??????????????????????? | | # ######??#### ##?????????????????????? | | ! !!#???????!! ]]?????????????????????? | | ! !!#????????! ]??????????????????????? | | ! !!#????????! ]??????????????????????? | | # ###??????### ###???????????##???????? | | !!#??????# [[#?????????? [#???????? | | !!#??????# [[#?????????% [#???????? | | # ########## [[########## #????????? | | # ###!!# ;## #?#[[[# *;#; ###??????? | | " ## !# ;;; ###[[[#!!=[ % %"#??????? | | " % x %%!gg=[ %"""??????? | | " % H ! % =%!g%= <""#??????? | | """"##!!#!!!#x[!!!!!; !@g% %%"""#??????? | | """"#########[[!!!!!;##;#*###"""""#??????? | | ##"##???????#########?#####??????????????? | | ?#"#?????????????????????????????????????? | | ?""??????????????????????????????????????? | | ?????????????????????????????????????????? | | ?????????????????????????????????????????? | | ?????????????????????????????????????????? | | ?????????????????????????????????????????? | | ?????????????????????????????????????????? | | | | | | | | | | | | | | | | | | | | | | | | | | | | | | | +----------------------------------------------------+ Best States ------------- Heat Dissipation 48 Coolant Potential 65 Energy Generation 23 Energy Capacity 1880 Matter Stores 500 Matter Capacity 500 Sight Range 16 Terrain Scan Density 10 Armor Coverage 225 Resistance: KI 30 Evasion (%) 55 Targeting Accuracy 8 Recoil Reduction 4 Particle Charging 15 Authchip Count 1 Item Schematics ----------------- None Robot Schematics ------------------ None Fabricated ------------ Nothing Repaired ---------- Nothing Alien Tech Used ----------------- None Achievements -------------- None Challenges ------------ None Game ------ Seed ThrusterInertialBoregun Manual? 0 Play Time 00:48:17 Cumulative 38.2 hours Start 2025.09.23 @ 15:30:14 End 2025.09.23 @ 16:23:03 Sessions 1 Manual Loads 0 Difficulty Rogue Special Mode None Game No. 61 Rogue 61 Adventurer 0 Explorer 0 Win Type - Total 0 Types 0/0/0/0/0/0/0/0/0/0 Lore% 20 Gallery% 32 Achievement% 27 Wizard Run 0 Options --------- Layout 1 ASCII 0 Keyboard 0 Movement Numpad Keybinds 0 Fullscreen 1 Font 24/Smallcaps Map View 50x35 Zoom Use 0% Tactical HUD 0 Map Filters NONE Filters NONE Steam 1 RUN: 869aecff-7acd-4572-bdfa-2eb5c168cdcc